Cogmind - Beta 14 @@@ ROGUE MODE // 2024.09.09 @ 21:18:07 Player: Waste Result: Destroyed by G-34 Mercenary with Small Laser Performance ------------- Evolutions (0) 0 Regions Visited (4) 800 Robots Destroyed (45) 225 Value Destroyed (1108) 1108 Prototype IDs (27) 540 Alien Tech Used (0) 0 Bonus (300) 300 TOTAL SCORE: 2973 Bonus ------- Aligned with FarCom 300 Cogmind --------- Core Integrity 0/250 Matter 248/300 Energy 222/250 System Corruption 3% Temperature Warm (190) Movement Treading (320) Ox2 Location -9/Mines Parts ------- > --- POWER (1) -------- Ion Engine > --- PROPULSION (2) --- Light Treads Light Treads > --- UTILITY (2) ------ Improved Heat Sink Huge Storage Unit > --- WEAPON (2) ------- Medium Laser Heavy Particle Cannon > --- INVENTORY (25) --- Ion Engine Ion Engine Light Ion Engine Light Treads Light Treads Aluminum Leg Flying Fortress v7 Small Storage Unit Medium Storage Unit High-capacity Battery (250) Structural Scanner Improved Terrain Scanner Hacking Suite Medium Laser Latent Energy Streamer Grenade Launcher Mining Laser Enhanced Flamer Peak State ------------ > --- POWER ------------ Ion Engine > --- PROPULSION ------- Light Treads Light Treads > --- UTILITY ---------- Improved Heat Sink Huge Storage Unit > --- WEAPON ----------- Medium Laser Heavy Particle Cannon > --- INVENTORY -------- Ion Engine Ion Engine Light Ion Engine Light Treads Light Treads Light Treads Aluminum Leg Flying Fortress v7 Small Storage Unit Medium Storage Unit High-capacity Battery Structural Scanner Improved Terrain Scanner Hacking Suite Medium Laser Latent Energy Streamer Grenade Launcher Mining Laser Enhanced Flamer [Rating: 17] Favorites ----------- Power Ion Engine Engine Ion Engine Propulsion Light Treads Treads Light Treads Leg Aluminum Leg Wheel Wheel Utility Huge Storage Unit Device Improved Heat Sink Storage Huge Storage Unit Weapon Medium Laser Energy Gun Medium Laser Energy Cannon Beam Cannon Ballistic Gun Assault Rifle Ballistic Cannon Light Cannon Build | -11 -10 -10 -10 -9 ------- Run | Yrd Mat Min Exi Min Slots Evolved . | . . . . . Power . | . . . . . Propulsion . | . . . . . Utility . | . . . . . Weapon . | . . . . . Parts Attached 22 | . 14 5 . 3 Power 3 | . 2 1 . . Engine 3 | . 2 1 . . Core . | . . . . . Reactor . | . . . . . Propulsion 7 | . 5 1 . 1 Treads 4 | . 2 1 . 1 Leg 1 | . 1 . . . Wheel 2 | . 2 . . . Hover . | . . . . . Flight . | . . . . . Utility 4 | . 4 . . . Device 2 | . 2 . . . Storage 2 | . 2 . . . Processor . | . . . . . Hackware . | . . . . . Protection . | . . . . . Artifact . | . . . . . Weapon 8 | . 3 3 . 2 Energy Gun 4 | . 1 2 . 1 Energy Cannon 2 | . 1 . . 1 Ballistic Gun 1 | . . 1 . . Ballistic Cannon 1 | . 1 . . . Launcher . | . . . . . Special Weapon . | . . . . . Impact Weapon . | . . . . . Slashing Weapon . | . . . . . Piercing Weapon . | . . . . . Special Melee Weapon . | . . . . . Unidentified Prototypes . | . . . . . Parts Lost 7 | . 1 5 . 1 Power 1 | . . 1 . . Propulsion 3 | . 1 1 . 1 Utility . | . . . . . Weapon 3 | . . 3 . . Highest Loss Streak 3 | . 1 3 . 1 To Critical Strikes . | . . . . . Average Slot Usage (%) 94 | . 98 99 71 99 Engine 13 | . 14 13 14 14 Treads 20 | . 6 27 28 28 Leg 2 | . 6 . . . Wheel 4 | . 14 . . . Device 13 | . 12 14 14 14 Storage 14 | . 14 14 14 14 Energy Gun 8 | . 6 13 . 13 Energy Cannon 6 | . 7 7 . 14 Ballistic Gun 4 | . 6 5 . . Ballistic Cannon 3 | . 7 2 . . Peak Build Rating 17 | . 11 12 13 17 Average Rating 11 | . 9 11 11 16 On Entrance 9 | 6 6 11 12 13 Naked Turns . | . . . . . Heaviest Build 94 | 11 92 92 90 94 Greatest Support 40 | 20 40 40 40 40 Greatest Overweight (x) 4 | . 4 4 2 2 Average Overweight (x) 2 | . 2 2 2 2 Largest Inventory Capacity 25 | . 25 25 25 25 Average Capacity 24 | . 24 25 25 25 Most Carried 24 | . 23 21 24 23 Average Carried 19 | . 15 19 22 21 Final Capacity 25 | 8 25 25 25 25 Final Carried 24 | 6 20 20 24 21 Class Distribution -------------------- 100% | Mutant Dominant Class ---------------- Mutant | -10/Materials Mutant | -10/Mines Mutant | -10/Exiles Mutant | -9/Mines Resources | -11 -10 -10 -10 -9 ----------- Run | Yrd Mat Min Exi Min Matter Collected 785 | 200 405 180 . . Remotely . | . . . . . Salvage Created 1395 | . 952 358 . 85 Parts 92 | . 63 24 . 5 Haulers Intercepted 2 | . 2 . . . Recyclers Shooed . | . . . . . Parts Field Recycled . | . . . . . Retrieved Matter . | . . . . . Parts Self-Destructed . | . . . . . Prevented . | . . . . . Kills | -11 -10 -10 -10 -9 ------- Run | Yrd Mat Min Exi Min Combat Hostiles Destroyed 34 | . 20 12 . 2 Guns 13 | . 9 3 . 1 Cannons 21 | . 11 9 . 1 Classes Destroyed 7 | . 7 . . . Worker 5 | . 3 2 . . Tunneler 1 | . 1 . . . Hauler 2 | . 2 . . . Operator 1 | . 1 . . . Watcher 2 | . 2 . . . Swarmer 9 | . 3 6 . . Grunt 25 | . 17 6 . 2 Best Kill Streak 3 | . 3 3 . 2 Combat Bots Only 3 | . 3 3 . 2 Max Kills in Single Turn 1 | . 1 1 . 1 Gunslinging . | . . . . . Exploded . | . . . . . Melee . | . . . . . Uniques/NPCs Destroyed . | . . . . . Combat | -11 -10 -10 -10 -9 -------- Run | Yrd Mat Min Exi Min Hostile Shots Fired 160 | . 71 77 . 12 Missed 40 | . 20 17 . 3 Damage Taken 1390 | . 596 681 . 113 Core 252 | . 96 131 . 25 Absorbed by Shields . | . . . . . Core Remaining (%) 100 | 100 . . . . Volleys Fired 120 | . 73 39 . 8 Largest 2 | . 2 2 . 2 Hottest 125 | . 95 110 . 125 Shots Fired 242 | . 146 80 . 16 Gun 130 | . 90 32 . 8 Cannon 112 | . 56 48 . 8 Launcher . | . . . . . Special . | . . . . . Kinetic 106 | . 73 33 . . Thermal 136 | . 73 47 . 16 Explosive . | . . . . . Electromagnetic . | . . . . . Robot Hit Streak 10 | . 10 10 . 10 Robot Miss Streak 5 | . 3 5 . 1 Penetration Max . | . . . . . Secondary Targets . | . . . . . Shots Hit Robots 150 | . 90 47 . 13 Core Hits 63 | . 40 19 . 4 Critical Kills . | . . . . . Critical Parts Destroyed . | . . . . . Critical Strikes 2 | . 1 . . 1 Burn 1 | . . . . 1 Blast 1 | . 1 . . . Melee Attacks . | . . . . . Impact . | . . . . . Slashing . | . . . . . Piercing . | . . . . . Sneak Attacks . | . . . . . Combat Hostiles . | . . . . . Follow-up Attacks . | . . . . . Damage Inflicted 2309 | . 1284 791 . 234 Guns 979 | . 612 262 . 105 Cannons 1291 | . 672 490 . 129 Explosions . | . . . . . Melee . | . . . . . Ramming 39 | . . 39 . . Kinetic 911 | . 691 220 . . Thermal 1359 | . 593 532 . 234 Explosive . | . . . . . Electromagnetic . | . . . . . Impact . | . . . . . Slashing . | . . . . . Piercing . | . . . . . Highest Corruption 3 | . 3 3 3 3 Average Corruption 2 | . 2 3 3 3 Corruption Purged . | . . . . . Corruption Blocked . | . . . . . Effects 52 | . 10 29 11 2 Message Errors 14 | . 2 8 3 1 Matter Fused 12 | . 3 6 3 . Heat Flow Errors 5 | . 1 3 1 . Energy Discharges 9 | . 1 5 2 1 Data Loss (minor) 8 | . 3 3 2 . Misfires 4 | . . 4 . . Overload Shots . | . . . . . Overflow Damage 9 | . 7 2 . . Projectiles 9 | . 7 2 . . Explosions . | . . . . . Melee . | . . . . . Knockbacks 5 | . 5 . . . Impact . | . . . . . Kinetic 5 | . 5 . . . Secondary . | . . . . . Self-Inflicted Damage . | . . . . . Shots . | . . . . . Rammed 5 | . . 5 . . Targets Rammed 6 | . . 6 . . Kicked . | . . . . . Crushed 1 | . . 1 . . Highest Temperature 266 | . 266 159 128 184 Average Temperature 43 | . 35 28 78 103 Received Heat Transfer 606 | . 294 249 . 63 Siege Activations . | . . . . . Robots Corrupted . | . . . . . Combat Hostiles . | . . . . . Parts Fried . | . . . . . Impact Corruptions . | . . . . . Robots Melted . | . . . . . Combat Hostiles . | . . . . . Parts Melted 6 | . . 5 . 1 Heat Transferred 3042 | . 1303 1184 . 555 Parts Sabotaged . | . . . . . Parts Stolen . | . . . . . Parts Stripped . | . . . . . Power Chain Reactions . | . . . . . Alert | -11 -10 -10 -10 -9 ------- Run | Yrd Mat Min Exi Min Peak Influence 392 | . 392 205 . 43 Initial 105 | . . 105 . . Average 115 | . 219 50 . 3 Maximum Alert Level 1 | . 1 1 . . Low Security (%) 70 | . 33 94 . 100 Level 1 29 | . 66 5 . . Level 2 . | . . . . . Level 3 . | . . . . . Level 4 . | . . . . . Level 5 . | . . . . . High Security . | . . . . . Max Security . | . . . . . Squads Dispatched 4 | . 4 . . . Investigation 2 | . 2 . . . Extermination . | . . . . . Reinforcement 2 | . 2 . . . Assault . | . . . . . Garrison . | . . . . . Intercept . | . . . . . Searches Triggered . | . . . . . Construction Impeded . | . . . . . Haulers Reinforced . | . . . . . Active Scanning Responses . | . . . . . Cargo Convoy Interrupts . | . . . . . Stealth | -11 -10 -10 -10 -9 --------- Run | Yrd Mat Min Exi Min Distress Signals 2 | . 2 . . . Communications Jammed . | . . . . . Distress Signals . | . . . . . Times Spotted 51 | . 36 12 . 3 Peak Tracking Total 7 | . 7 3 . 2 Tactical Retreats 4 | . 4 . . . Traps | -11 -10 -10 -10 -9 ------- Run | Yrd Mat Min Exi Min Traps Triggered 5 | . 4 1 . . Indirectly . | . . . . . Trap Hack Attempts . | . . . . . Triggered . | . . . . . Disarmed . | . . . . . Reprogrammed . | . . . . . Reused . | . . . . . Traps Extracted . | . . . . . Installed . | . . . . . Triggered . | . . . . . Machines | -11 -10 -10 -10 -9 ---------- Run | Yrd Mat Min Exi Min Machines Disabled . | . . . . . Max in Single Turn . | . . . . . Machines Repaired . | . . . . . Machines Dismantled . | . . . . . Machines Sabotaged . | . . . . . Overloaded Fab Kills . | . . . . . Hacking | -11 -10 -10 -10 -9 --------- Run | Yrd Mat Min Exi Min Machines Accessed 9 | . 6 2 1 . Terminals 7 | . 6 1 . . Fabricators . | . . . . . Repair Stations . | . . . . . Recycling Units . | . . . . . Scanalyzers . | . . . . . Garrison Access . | . . . . . Total Hacks 18 | . 12 5 1 . Successful 12 | . 9 2 1 . Failed 6 | . 3 3 . . Catastrophic 1 | . 1 . . . Database Lockouts . | . . . . . Manual 17 | . 12 4 1 . Terminals 16 | . 12 4 . . Fabricators . | . . . . . Repair Stations . | . . . . . Recycling Units . | . . . . . Scanalyzers . | . . . . . Garrison Access . | . . . . . Terminal Hacks 7 | . 4 2 1 . Robot Analysis 2 | . 2 . . . Prototype ID Bank 2 | . 1 1 . . Open Door 1 | . . 1 . . Hauler Manifests 1 | . 1 . . . Derelict Proto ID Bank 1 | . . . 1 . Fabricator Hacks . | . . . . . Repair Station Hacks . | . . . . . Recycling Unit Hacks . | . . . . . Scanalyzer . | . . . . . Garrison Access Hacks . | . . . . . Unauthorized Hacks 5 | . 5 . . . Terminals 5 | . 5 . . . Skim 5 | . 5 . . . Fabricators . | . . . . . Repair Stations . | . . . . . Recycling Units . | . . . . . Scanalyzers . | . . . . . Garrison Access . | . . . . . Data Cores Recovered . | . . . . . Used . | . . . . . Hacking Detections 6 | . 5 1 . . Full Trace Events . | . . . . . Feedback Events . | . . . . . Feedback Blocked . | . . . . . Robot Schematics Acquired . | . . . . . Robots Built . | . . . . . Authchips . | . . . . . Time . | . . . . . Total Robot Build Rating . | . . . . . Part Schematics Acquired . | . . . . . Parts Built . | . . . . . Authchips . | . . . . . Time . | . . . . . Total Part Build Rating . | . . . . . Parts Repaired . | . . . . . Time . | . . . . . Parts Recycled . | . . . . . Recycled Matter . | . . . . . Retrieved Matter . | . . . . . Retrieved Components . | . . . . . Parts Scanalyzed . | . . . . . Part Schematics Acquired . | . . . . . Parts Damaged . | . . . . . Bothacking | -11 -10 -10 -10 -9 ------------ Run | Yrd Mat Min Exi Min Used RIF Installer . | . . . . . Robots Hacked . | . . . . . Non-combat . | . . . . . Combat . | . . . . . Robot Hacks Applied . | . . . . . Relay Couplers Released . | . . . . . Fabnet Peak Effective % . | . . . . . Robots Rewired . | . . . . . Allies Hacked . | . . . . . Hacks Repelled . | . . . . . Allies | -11 -10 -10 -10 -9 -------- Run | Yrd Mat Min Exi Min Total Allies 2 | . . 2 . . Largest Group 2 | . . 2 2 . Highest-Rated Group 43 | . . 43 43 . Highest-Rated Ally 31 | . . 31 31 . Total Orders . | . . . . . Ally Attacks . | . . . . . Total Damage . | . . . . . Kills . | . . . . . Allies Corrupted . | . . . . . Allies Melted . | . . . . . Intel | -11 -10 -10 -10 -9 ------- Run | Yrd Mat Min Exi Min Robot Analysis Total 2 | . 2 . . . Derelict Logs Recovered 2 | . . 2 . . Drone Launches . | . . . . . Drone Recoveries . | . . . . . Exploration | -11 -10 -10 -10 -9 ------------- Run | Yrd Mat Min Exi Min Turns Passed 4187 | . 1374 1900 744 169 Spaces Moved 1382 | 1 571 546 220 44 Core . | . . . . . Treads 910 | . 100 546 220 44 Legs 88 | 1 87 . . . Wheels 384 | . 384 . . . Hover . | . . . . . Flight . | . . . . . Fastest Speed 120 | 120 120 320 320 320 Average Speed 265 | 120 188 320 320 320 Slowest Speed 480 | 120 400 480 320 320 Overloaded Moves . | . . . . . Propulsion Burnouts . | . . . . . Robots Hopped . | . . . . . Cave-ins Triggered . | . . . . . Exploration Rate (%) 52 | 2 95 94 62 9 Regions Visited 4 Branch Regions 3 Pre-discovered Areas 1 | . . 1 . . Known Exits Taken . | . . . . . Unknown Exits Taken 4 | 1 1 1 1 . Scrap Searched 1 | . . 1 . . Spaces Dug . | . . . . . Terrain Destroyed 3 | . . . . 3 Melee . | . . . . . Projectile 3 | . . . . 3 AOE . | . . . . . Terrain Rammed . | . . . . . Walls Destroyed . | . . . . . Machines Disabled . | . . . . . Actions | -11 -10 -10 -10 -9 --------- Run | Yrd Mat Min Exi Min Total 1651 | . 724 606 264 57 Wait 96 | . 49 7 38 2 Move 1378 | . 570 545 219 44 Hop . | . . . . . Pick Up 18 | . 12 4 2 . Fast Attach 5 | . 4 1 . . Attach 10 | . 3 4 . 3 Detach 5 | . 3 . 2 . Swap 7 | . 7 . . . Drop 6 | . 3 . 3 . Fire 120 | . 73 39 . 8 Melee . | . . . . . Ram . | . . . . . Kick . | . . . . . Crush 6 | . . 6 . . Escape Stasis . | . . . . . Rewire . | . . . . . Trap . | . . . . . Miscellaneous . | . . . . . Route ------- -11/Scrapyard -10/Materials (discovered 6 exits: *Mat x3 / *Min x2 / Sub) -10/Mines (discovered 4 exits: *Mat x2 / *Exi / *Sub) -10/Exiles (discovered 2 exits: [*Min x2]) -9/Mines History --------- Turn | Location | Event 1 | -11/Scrapyard | Discovered new exit (range 0) 1 | -11/Scrapyard | Entered Materials 293 | -10/Materials | Discovered new exit (range 16) 315 | -10/Materials | Build established: Mutant 520 | -10/Materials | Discovered new exit (range 15) 618 | -10/Materials | Discovered new exit (range 13) 806 | -10/Materials | Discovered new exit (range 8) 924 | -10/Materials | Learned Storage trap positions 996 | -10/Materials | Learned Storage security intel 1056 | -10/Materials | Identified exit to Subcaves 1056 | -10/Materials | Identified exit to Materials 1173 | -10/Materials | Learned 4 Recycling zone layouts 1201 | -10/Materials | Derelicts attacked the area 1211 | -10/Materials | Learned Storage terminal intel 1259 | -10/Materials | Learned location of 1 exit from Storage 1375 | -10/Materials | Entered Mines 1445 | -10/Mines | Core integrity fell below 50% 1757 | -10/Mines | Learned location of 1 exit from Materials 1951 | -10/Mines | Discovered exit to Materials (range 4) 2073 | -10/Mines | A weapon hastily lodged in a ceiling crevice suddenly fell to the ground 2370 | -10/Mines | Core integrity fell below 20% 2408 | -10/Mines | Lost 3 parts (1n2w) 2451 | -10/Mines | Discovered exit to Subcaves (range 13) 2598 | -10/Mines | Learned location of Zion (-6) 2723 | -10/Mines | Discovered exit to Materials (range 12) 2916 | -10/Mines | Met a Derelict who couldn't figure out how to use a Trap Extractor 3033 | -10/Mines | Deemed a non-threat by the Exiles lab entrance 3254 | -10/Mines | Discovered new exit (range 5) 3275 | -10/Mines | Entered Exiles 3275 | -10/Exiles | Accompanied by 2 allies 3305 | -10/Exiles | Led the pair of lost Derelicts to a safe place 3318 | -10/Exiles | Discovered new exit (range 15) 3350 | -10/Exiles | Met 8R-AWN 3408 | -10/Exiles | Met EX-HEX 3497 | -10/Exiles | Met EX-BIN 3536 | -10/Exiles | Aligned with FarCom system 3539 | -10/Exiles | Given EX-Vault access code 3616 | -10/Exiles | Opened EX-Vault 3636 | -10/Exiles | Found Flying Fortress v7 3650 | -10/Exiles | Found Latent Energy Streamer 3712 | -10/Exiles | Warned to stay clear of 0b10 Research branches 3814 | -10/Exiles | Met EX-DEC 3946 | -10/Exiles | Discovered new exit (range 14) 4019 | -10/Exiles | Stole two prototypes: Flying Fortress v7, Latent Energy Streamer 4019 | -10/Exiles | Entered Mines 4188 | -9/Mines | Destroyed by G-34 Mercenary with Small Laser Last Messages --------------- sneak in here and steal a few of HEX's prototypes. EX-DEC: Ah I see we have a visitor. One wrong move in here and I'll invert your atomic chain! 03816_ EX-DEC: "Oops, I hope HEX didn't hear that..." 03878_ System corrupted: Matter fused (-10). 03946_ EXIT=FOUND 03960_ System corrupted: Energy discharge (-77). 03982_ System corrupted: Component data lost. 04005_ System corrupted: Matter fused (-8). LOCATION=UNKNOWN GOAL=ESCAPE 04019_ Receiving FarCom transmissions... 04031_ System corrupted: Energy discharge (-62). 04123_ EO0LJXJFYMU:Y5GG| IBA ZCKMGQT 04164_ G-47 Trooper suffers critical hit (Burn). 04171_ G-47 Trooper overheating. 04173_ Particle Gun melted. 04173_ G-47 Trooper destroyed. 04174_ Lgt. Treads destroyed. 04176_ G-34 Mercenary destroyed. Map ----- +----------------------------------------------------+ | | | | | | | | | | | | | | | | | | | | | | | | | | | | | | | | | | | ?????????????????????????????????????????????????? | | ????????????????????????#####????????????????????? | | ??????????????????????## ##???????????????????? | | ?????????????????????## #???????????????????? | | ???######???????????## #???????????????????? | | ??## ##?????????## #????????????????????? | | ??# ##?????#### #?????????????????????? | | ???# #????## ##?????????????????????? | | ???# #????# @;########??????????????? | | ???# #????# =g!* #?????????????? | | ???## ##??## #;=###### #?????????????? | | ????## #### ########????????????????????? | | ?????## ##???????????????????????????? | | ??????## ##????????????????????????????? | | ???????### ##?????????????????????????????? | | ?????????## ##??????????????????????????????? | | ??????????########???????????????????????????????? | | ?????????????????????????????????????????????????? | | ?????????????????????????????????????????????????? | | ?????????????????????????????????????????????????? | | ?????????????????????????????????????????????????? | | ?????????????????????????????????????????????????? | | ?????????????????????????????????????????????????? | | ?????????????????????????????????????????????????? | | ?????????????????????????????????????????????????? | | ?????????????????????????????????????????????????? | | ?????????????????????????????????????????????????? | | ?????????????????????????????????????????????????? | | ?????????????????????????????????????????????????? | | ?????????????????????????????????????????????????? | | ?????????????????????????????????????????????????? | | ?????????????????????????????????????????????????? | | ?????????????????????????????????????????????????? | +----------------------------------------------------+ Best States ------------- Heat Dissipation 39 Energy Generation 10 Energy Capacity 250 Matter Stores 300 Matter Capacity 300 Sight Range 16 Terrain Scan Range 16 Terrain Scan Density 10 Evasion (%) 55 Recoil Reduction 2 Item Schematics ----------------- None Robot Schematics ------------------ None Fabricated ------------ Nothing Alien Tech Used ----------------- None Achievements -------------- None Challenges ------------ None Game ------ Seed ThunderChromaticBlaster Manual? 0 Play Time 00:11:15 Cumulative 312.8 hours Start 2024.09.09 @ 21:07:23 End 2024.09.09 @ 21:18:07 Sessions 1 Manual Loads 0 Difficulty Rogue Special Mode None Game No. 384 Rogue 384 Adventurer 0 Explorer 0 Win Type - Total 21 Types 10/1/5/1/1/1/0/1/1 Lore% 81 Gallery% 81 Achievement% 74 Wizard Run 0 Options --------- Layout 0 ASCII 0 Keyboard 0 Movement Numpad Keybinds 0 Fullscreen 1 Font 18/SmallcapsGlow Map View 76x50 Zoom Use 0% Tactical HUD 1 Map Filters NONE Filters NONE Steam 1 RUN: b6a9985b-416a-4ba5-babf-64c19fe0376e